bitfinex/quotes_ETHUSD_20240907
["timestamp","ask_amount","ask_price","bid_price","bid_amount"]
[1725743107355,1.6822876,2275.7,2275.6,4.39442]
[1725743107524,2.2322876,2275.7,2275.6,4.39442]
[1725743107719,2.2322876,2275.7,2275.4,4.39475]
[1725743107919,4.03610336,2275.5,2275.4,8.78944]
[1725743108131,4.58610336,2275.5,2275.4,11.78944]
[1725743109463,2.98567198,2276.0,2275.6,4.39444]
[1725743109464,0.1741775,2276.0,2275.6,4.39444]
[1725743109760,4.03610336,2275.7,2275.6,4.39444]
[1725743109948,4.58610336,2275.7,2275.6,4.39444]
[1725743110544,4.58610336,2275.7,2275.6,8.78888]
[1725743111336,4.58610336,2275.7,2275.6,11.24388]
[1725743111542,4.58610336,2275.7,2275.6,12.82195745]
[1725743111742,4.58610336,2275.7,2275.6,8.78888]
[1725743112568,5.12047079,2275.7,2275.6,4.39444]
[1725743114381,0.17221296,2276.2,2275.9,4.39385]
[1725743114577,4.03610336,2276.0,2275.9,4.39385]
[1725743114871,4.58610336,2276.0,2275.9,4.39385]
[1725743116482,5.12047079,2276.0,2275.8,8.78796]
[1725743116679,0.55,2275.9,2275.8,4.39392]
[1725743116889,1.08436743,2275.9,2275.8,4.39392]
[1725743118289,1.08436743,2275.9,2275.8,8.78797]
[1725743124552,1.08436743,2275.9,2275.8,4.39405]
[1725743125604,1.08436743,2275.9,2275.8,8.7881]
[1725743130109,1.08436743,2275.9,2275.6,4.39432]
[1725743130110,5.64666398,2275.9,2275.6,4.39432]
[1725743130316,1.68120207,2275.7,2275.6,7.39432]
[1725743130906,2.23120207,2275.7,2275.6,7.39432]
[1725743131203,2.7655695,2275.7,2275.6,7.39432]
[1725743131913,2.86408251,2275.7,2275.6,7.39432]
[1725743135818,2.86408251,2275.7,2275.6,11.78876]
[1725743136722,2.31408251,2275.7,2275.6,11.78876]
[1725743138819,4.66808251,2275.7,2275.6,7.39432]
[1725743139198,2.31408251,2275.7,2275.6,7.39432]
[1725743139395,2.31408251,2275.7,2275.6,11.78876]
[1725743139600,1.77971508,2275.7,2275.6,13.214886]
[1725743141188,0.09851301,2275.7,2275.6,13.214886]
[1725743141394,1.68120207,2275.7,2275.6,13.214886]
[1725743141818,0.09164895,2275.7,2275.6,13.214886]
[1725743142005,1.68120207,2275.7,2275.6,13.214886]
[1725743142332,1.77266895,2275.7,2275.6,17.609326]
[1725743142829,1.68120207,2275.7,2275.6,17.609326]
[1725743143795,1.68120207,2275.7,2275.6,20.081826]
[1725743149237,0.53436743,2276.0,2275.9,8.78772]
[1725743149470,2.2155695,2276.0,2275.9,8.78772]
[1725743153157,2.2155695,2276.0,2275.9,13.19799293]
[1725743154832,2.2155695,2276.0,2275.9,11.78772]
[1725743160646,2.39325026,2276.0,2275.9,11.78772]
[1725743165262,2.39325026,2276.0,2275.9,7.39386]
[1725743165902,2.48435048,2276.0,2275.9,7.39386]
[1725743167012,2.30666972,2276.0,2275.9,11.78772]
[1725743167166,1.77230229,2276.0,2275.9,11.78772]
[1725743170727,2.68614597,2276.0,2275.6,0.92080927]
[1725743170877,1.68120207,2275.7,2275.5,4.39448]
[1725743171076,0.09070968,2275.6,2275.5,8.78902]
[1725743172585,0.09070968,2275.6,2275.5,11.78902]
[1725743172800,1.68120207,2275.7,2275.6,4.39444]
[1725743173002,1.68120207,2275.7,2275.6,7.39444]
[1725743175907,1.77179999,2275.7,2275.6,7.39444]
[1725743177697,0.09059792,2275.7,2275.6,11.78888]
[1725743178009,1.68120207,2275.7,2275.6,13.645117]
[1725743178206,1.76877686,2275.7,2275.6,13.645117]
[1725743178409,0.08757479,2275.7,2275.6,13.645117]
[1725743178898,1.68120207,2275.8,2275.7,8.7885]
[1725743179099,1.76898135,2275.8,2275.7,10.92236863]
[1725743179822,1.76898135,2275.8,2275.7,15.31661863]
[1725743180340,1.76898135,2275.8,2275.7,21.6161279]
[1725743180543,0.08777928,2275.8,2275.7,21.6161279]
[1725743180707,1.68120207,2276.0,2275.7,21.6161279]
[1725743180708,1.68120207,2276.0,2275.9,8.78772]
[1725743181030,1.68120207,2276.0,2275.9,11.78772]
[1725743181402,2.14117266,2276.0,2275.9,11.78772]
[1725743181608,2.14117266,2276.0,2275.9,13.88318934]
[1725743181905,2.14117266,2276.0,2275.9,18.27704934]
[1725743184045,2.22937086,2276.0,2275.9,18.27704934]
[1725743184231,2.22937086,2276.0,2275.9,13.88318934]
[1725743185256,2.22937086,2276.0,2275.9,11.78772]
[1725743186105,2.22937086,2276.0,2275.9,11.73772]
[1725743186810,0.54816879,2276.0,2275.9,16.13158]
[1725743187145,2.22937086,2276.0,2275.9,17.05500506]
[1725743187311,2.22937086,2276.0,2275.9,14.44279675]
[1725743190455,1.76940027,2276.0,2275.9,14.44279675]
[1725743190871,0.0881982,2276.0,2275.9,18.83665675]
[1725743191187,1.68120207,2276.0,2275.9,14.44279675]
[1725743191342,1.68120207,2276.0,2275.9,11.73772]
[1725743191343,1.76376074,2276.0,2275.9,11.73772]
[1725743194141,0.08255867,2276.0,2275.9,18.40248]
[1725743194344,1.68120207,2276.2,2276.1,8.78696]
[1725743194586,1.76371049,2276.2,2276.1,8.78696]
[1725743199387,1.76371049,2276.2,2276.1,11.21026]
[1725743200477,1.76371049,2276.2,2276.1,8.78696]
[1725743201201,4.17801049,2276.2,2276.1,8.78696]
[1725743201495,4.17801049,2276.2,2275.9,3.0]
[1725743201496,5.6196748,2276.2,2275.6,0.92342506]
[1725743201696,1.68120207,2275.7,2275.4,5.31814506]
[1725743201870,2.4143,2275.8,2275.7,4.39425]
[1725743202398,3.89082649,2275.8,2275.5,4.39462]
[1725743202601,0.38908265,2275.7,2275.5,4.39462]
[1725743202890,0.38908265,2275.7,2275.6,4.39444]
[1725743203095,2.62028472,2275.7,2275.6,4.39444]
[1725743203992,2.70186,2275.7,2275.6,4.39444]
[1725743207256,2.70186,2275.7,2275.4,4.39468]
[1725743207257,2.70186,2275.7,2275.5,4.39463]
[1725743207462,1.68120207,2275.6,2275.5,4.39463]
[1725743207765,1.76009858,2275.6,2275.5,4.39463]
[1725743215132,2.22006896,2275.6,2275.5,4.39463]
[1725743216992,2.22006896,2275.6,2275.5,8.78926]
[1725743219245,0.53886689,2275.6,2275.5,8.78926]
[1725743219829,0.07889651,2275.6,2275.5,8.68926]
[1725743223356,0.07889651,2275.6,2275.3,4.39496]
[1725743223357,0.57225281,2275.6,2275.3,4.39496]
[1725743223570,0.57225281,2275.6,2275.0,0.1165014]
[1725743223571,2.4471,2275.3,2275.0,0.1165014]
[1725743223712,2.4471,2275.3,2274.7,4.39614]
[1725743223713,1.68120207,2275.1,2274.7,4.39614]
[1725743223914,1.68120207,2274.9,2274.6,0.005]
[1725743224172,4.12830207,2274.7,2274.5,0.01]
[1725743224333,4.12830207,2274.7,2274.1,8.79445]
[1725743224334,1.68120207,2274.4,2274.1,8.79445]
[1725743224653,0.07655243,2274.3,2274.1,4.39717]
[1725743224850,0.07655243,2274.3,2274.2,4.39715]
[1725743225259,0.07655243,2274.3,2273.5,0.92342506]
[1725743225418,0.07655243,2274.3,2273.3,8.1622339]
[1725743225419,1.68120207,2274.1,2273.8,4.3979]
[1725743225618,0.55,2274.2,2273.9,4.39772]
[1725743225848,2.61828505,2274.5,2274.2,4.39713]
[1725743226055,2.61828505,2274.5,2274.2,4.39703]
[1725743226056,2.4471,2274.5,2274.2,4.39703]
[1725743226441,0.53627992,2274.5,2274.3,4.39692]
[1725743227248,0.07522416,2274.4,2274.3,4.39692]
[1725743227660,0.07522416,2274.4,2274.3,5.276315]
[1725743228261,0.53627992,2274.7,2274.3,4.39692]
[1725743228461,0.55,2274.6,2274.4,4.39675]
[1725743228765,0.53627992,2274.7,2274.5,4.39657]
[1725743228920,0.53627992,2274.7,2274.6,4.39637]
[1725743229124,2.4471,2274.8,2274.5,4.39657]
[1725743229330,2.4471,2274.8,2274.5,8.793]
[1725743229564,2.4471,2274.8,2274.5,8.79287]
[1725743229776,1.04089177,2274.9,2274.5,4.39643]
[1725743230092,0.55,2274.8,2274.5,4.39643]
[1725743230262,1.59089177,2274.8,2274.5,4.39643]
[1725743230977,0.07634904,2274.7,2274.5,4.39643]
[1725743231333,0.53627992,2274.6,2274.5,4.39643]
[1725743231639,0.61248442,2274.6,2274.5,4.39643]
[1725743232067,0.0762045,2274.6,2274.5,4.39643]
[1725743232271,0.0762045,2274.6,2274.5,8.793]
[1725743232440,0.53627992,2275.0,2274.7,4.39611]
[1725743232789,0.07337493,2274.9,2274.7,4.39604]
[1725743232955,2.4471,2275.1,2274.8,4.39599]
[1725743233159,2.98337992,2275.1,2274.8,4.39599]
[1725743233488,0.53627992,2275.0,2274.8,4.39599]
[1725743234679,1.04089177,2275.0,2274.8,4.39599]
[1725743236597,0.53627992,2275.0,2274.7,4.39603]
[1725743237196,0.53627992,2275.0,2274.7,8.79211]
[1725743237509,0.53627992,2275.0,2274.7,8.7921]
[1725743237808,0.53627992,2275.0,2274.8,4.39593]
[1725743238311,4.93191992,2275.0,2274.5,7.39645]
[1725743238466,4.37835396,2274.9,2274.6,4.39632]
[1725743238667,3.32374211,2274.9,2274.7,4.39614]
[1725743238872,0.97084211,2274.9,2274.7,4.39614]
[1725743239172,0.07369473,2274.9,2274.7,4.39614]
[1725743243670,0.07369473,2274.9,2274.8,4.39599]
[1725743244516,0.07369473,2274.9,2274.7,4.39614]
[1725743244810,0.60997465,2274.9,2274.7,4.39614]
[1725743246014,0.60997465,2274.9,2274.7,8.79222]
[1725743246189,0.60997465,2274.9,2274.8,4.39599]
[1725743246518,0.60997465,2274.9,2274.7,8.79216]
[1725743247190,0.60997465,2274.9,2274.7,4.39608]
[1725743247719,7.43334563,2274.8,2274.4,4.39661]
[1725743248013,1.68301274,2274.6,2274.4,4.39661]
[1725743248240,0.07322359,2274.5,2274.4,4.39661]
[1725743248793,0.07322359,2274.5,2274.3,4.39683]
[1725743249015,1.68301274,2274.4,2274.3,4.39683]
[1725743251402,1.75504526,2274.4,2274.3,4.39683]
[1725743255672,0.07203252,2274.4,2274.3,9.7611071]
[1725743255813,0.07203252,2274.4,2274.3,8.79378]
[1725743256136,1.68301274,2274.7,2274.5,8.79298]
[1725743256611,1.68301274,2274.7,2274.6,4.39637]
[1725743257936,2.21929266,2274.7,2274.6,4.39637]
[1725743258138,2.73151193,2274.7,2274.6,4.39637]
[1725743258643,2.80133719,2274.7,2274.6,4.39637]
[1725743259806,0.06982526,2274.7,2274.6,4.39637]
[1725743260013,0.53627992,2274.7,2274.6,4.39637]
[1725743260228,0.60610518,2274.7,2274.6,8.79274]
[1725743260410,0.60610518,2274.7,2274.6,4.39637]
[1725743261037,0.06982526,2274.7,2274.6,11.34156066]
[1725743261235,1.68301274,2275.0,2274.8,4.39586]
[1725743261438,0.53627992,2275.1,2275.0,4.3956]
[1725743261799,2.21929266,2275.1,2275.0,4.3956]
[1725743262330,2.28511717,2275.1,2275.0,4.3956]
[1725743265123,2.28511717,2275.1,2274.6,2.4609]
[1725743265124,4.39561,2275.0,2274.6,4.39636]
[1725743265305,1.68301274,2274.7,2274.3,4.39678]
[1725743265498,1.68301274,2274.5,2274.4,4.39666]
[1725743265735,2.21929266,2274.5,2274.4,4.39666]
[1725743266044,2.28117386,2274.5,2274.4,4.39666]
[1725743268043,0.0618812,2274.5,2274.4,8.79342]
[1725743268250,4.57508781,2274.8,2274.5,4.39645]
[1725743268458,0.61220512,2274.7,2274.5,4.39645]
[1725743269299,1.14848504,2274.7,2274.5,4.39645]
[1725743271732,1.14848504,2274.7,2274.6,4.39637]
[1725743271929,0.59848504,2274.7,2274.6,4.39637]
[1725743278250,0.54848504,2274.7,2274.6,4.39637]
[1725743278564,0.59687977,2274.7,2274.6,4.39637]
[1725743281903,0.59687977,2274.7,2274.6,16.63082721]
[1725743282031,0.05899394,2274.7,2274.6,32.86611191]
[1725743282232,4.03880789,2275.2,2275.0,4.39547]
[1725743282433,5.12840531,2275.1,2275.0,4.39547]
[1725743283088,4.08751354,2275.1,2275.0,9.34657699]
[1725743283227,4.08751354,2275.1,2275.0,11.82107699]
[1725743284876,4.03880789,2275.1,2275.0,11.82107699]
[1725743285165,4.08442004,2275.1,2275.0,11.82107699]
[1725743287181,4.85408849,2275.8,2275.7,8.7885]
[1725743287182,0.45990849,2275.8,2275.7,8.7885]
[1725743287333,4.49871638,2275.8,2275.7,8.7885]
[1725743287673,4.08522362,2275.8,2275.7,8.7885]
[1725743288232,0.04641573,2275.8,2275.7,15.65725]
[1725743288475,0.53627992,2276.1,2275.9,4.39386]
[1725743288769,4.03880789,2276.2,2276.1,8.78696]
[1725743289878,4.03880789,2276.2,2276.1,15.65494]
[1725743290374,4.54341974,2276.4,2276.3,8.78618]
[1725743290738,4.08399707,2276.4,2276.3,8.78618]
[1725743291060,4.08399707,2276.4,2276.3,10.351573]
[1725743291263,4.08399707,2276.4,2276.3,14.744663]
[1725743291577,0.04518918,2276.4,2276.3,17.744663]
[1725743291979,4.03880789,2276.6,2276.5,8.7854]
[1725743292148,4.03880789,2276.6,2276.5,15.6526]
[1725743292354,9.78714974,2277.0,2276.9,4.39193]
[1725743292553,4.54341974,2277.0,2276.9,8.78386]
[1725743293684,5.03499613,2277.0,2276.9,8.78386]
[1725743294310,0.99618824,2277.0,2276.9,8.78386]
[1725743294458,5.03499613,2277.0,2276.9,8.78386]
[1725743294990,5.55565793,2277.0,2276.8,4.39212]
[1725743295157,4.03880789,2276.9,2276.8,4.39212]
[1725743295353,4.54341974,2276.9,2276.8,4.39212]
[1725743297462,4.03880789,2276.9,2276.8,4.39212]
[1725743299000,4.03880789,2276.9,2276.7,4.39218]
[1725743301119,4.03880789,2276.9,2276.0,4.39363]
[1725743301120,4.39243,2276.7,2276.1,4.39337]
[1725743301419,4.03880789,2276.2,2276.1,4.3933]
[1725743302672,4.03880789,2276.2,2276.1,8.78678]
[1725743305040,4.03880789,2276.2,2276.1,4.3933]
[1725743307617,4.03880789,2276.2,2276.1,8.78678]
[1725743308916,4.03880789,2276.2,2276.1,4.3933]
[1725743309132,4.03880789,2276.2,2275.7,4.39414]
[1725743309334,4.03880789,2275.8,2275.7,4.39414]
[1725743310284,4.03880789,2275.8,2275.7,8.78839]
[1725743310488,4.03880789,2275.8,2275.7,13.18264]
[1725743310728,4.03880789,2275.8,2275.7,18.61714]
[1725743311225,4.03880789,2275.8,2275.7,20.478854]
[1725743316822,4.03880789,2275.8,2275.3,4.395]
[1725743317163,4.03880789,2275.8,2275.6,4.39444]
[1725743317164,1.54618824,2275.7,2275.6,4.39444]
[1725743317452,0.99618824,2275.7,2275.6,8.78888]
[1725743317632,0.50461185,2275.7,2275.6,8.78888]
[1725743318844,0.49157639,2276.0,2275.6,8.78888]
[1725743319046,4.03880789,2275.7,2275.6,4.39444]
[1725743323560,4.03880789,2275.7,2275.6,8.78888]
[1725743323845,4.03880789,2275.7,2275.6,12.667784]
[1725743324050,4.58607941,2275.7,2275.6,11.78888]
[1725743325855,7.03557941,2275.7,2275.6,11.78888]
[1725743326019,2.4495,2275.2,2274.5,4.39644]
[1725743326362,2.4495,2275.2,2274.2,0.92198101]
[1725743326363,4.03880789,2274.6,2274.0,4.3975]
[1725743326521,4.03880789,2274.6,2274.5,4.39657]
[1725743327813,4.03880789,2274.9,2274.6,4.39628]
[1725743328017,4.7850146,2274.9,2274.6,9.232108]
[1725743328213,0.74620671,2274.8,2274.7,4.39614]
[1725743329717,0.74620671,2274.8,2274.6,4.835828]
[1725743330045,0.74620671,2274.8,2274.7,4.39618]
[1725743336664,1.37885837,2274.8,2274.7,4.39618]
[1725743337458,1.37885837,2274.8,2274.6,4.3962]
[1725743337637,0.63265166,2274.7,2274.6,4.3962]
[1725743337841,1.37885837,2274.7,2274.6,4.3962]
[1725743338242,1.37885837,2274.7,2274.4,4.39661]
[1725743338462,4.03880789,2274.5,2274.4,4.39661]
[1725743338635,5.41766626,2274.5,2274.4,7.39661]
[1725743343973,5.41766626,2274.5,2274.4,8.57598]
[1725743347872,5.41766626,2274.5,2274.4,15.28574]
[1725743348099,4.7850146,2274.5,2274.4,15.28574]
[1725743348514,4.7850146,2274.5,2274.4,14.10637]
[1725743348804,8.34896626,2274.5,2274.2,8.7941]
[1725743349002,4.03880789,2274.3,2274.2,4.39704]
[1725743349216,5.37174139,2274.3,2274.2,4.39704]
[1725743353711,5.37174139,2274.3,2274.1,4.4126186]
[1725743353894,1.3329335,2274.2,2274.1,8.8098486]
[1725743354094,1.3329335,2274.2,2274.1,11.8098486]
[1725743355001,1.3329335,2274.2,2274.1,7.4125186]
[1725743356305,1.3329335,2274.2,2274.1,11.8098586]
[1725743357212,1.3329335,2274.2,2274.1,4.4125186]
[1725743357374,1.3329335,2274.2,2274.1,0.0152886]
[1725743358803,1.3329335,2274.2,2274.1,4.4126286]
[1725743360307,3.6331335,2274.2,2274.1,4.4126286]
[1725743361079,4.40032764,2274.2,2273.8,4.39782]
[1725743361279,4.03880789,2273.9,2273.8,4.39782]
[1725743361477,5.37174139,2273.9,2273.8,4.39782]
[1725743362193,5.37174139,2273.9,2273.7,4.39811]
[1725743362408,4.73908973,2273.9,2273.7,4.39811]
[1725743363284,4.73908973,2273.9,2273.8,4.39792]
[1725743364312,4.91263455,2273.9,2273.8,4.39792]
[1725743364661,0.70028184,2274.1,2274.0,4.39753]
[1725743364828,5.37174139,2274.1,2273.9,8.79523]
[1725743365025,4.73908973,2274.1,2274.0,3.0]
[1725743365182,4.73908973,2274.1,2274.0,2.36734834]
[1725743365387,4.73908973,2274.1,2273.9,8.79515]
[1725743365817,4.73908973,2274.1,2274.0,4.39753]
[1725743366234,4.73908973,2274.1,2273.9,4.39755]
[1725743366434,5.31902041,2274.1,2273.9,4.39755]
[1725743369254,0.57993068,2274.0,2273.7,4.39801]
[1725743369534,4.03880789,2273.8,2273.7,4.39801]
[1725743369830,4.73908973,2273.8,2273.7,4.39801]
[1725743370235,4.73908973,2273.8,2273.6,7.3983]
[1725743370451,0.70028184,2273.7,2273.6,7.3983]
[1725743374131,0.70028184,2273.7,2273.6,3.0]
[1725743374433,0.70028184,2273.7,2273.6,7.39831]
[1725743379467,0.70028184,2273.7,2273.6,3.0]
[1725743379723,7.63966391,2273.7,2273.2,4.39905]
[1725743379863,7.63966391,2273.7,2272.9,5.4027355]
[1725743379864,7.99907602,2273.7,2273.3,4.39887]
[1725743380035,0.57993068,2273.6,2273.3,4.39887]
[1725743380242,0.70028184,2273.5,2273.3,4.39887]
[1725743380545,0.70028184,2273.5,2273.2,4.39906]
[1725743380546,2.13811319,2273.5,2273.2,4.39906]
[1725743380746,4.03880789,2273.3,2273.2,4.39906]
[1725743380951,4.73908973,2273.3,2273.2,4.39906]
[1725743381937,4.73908973,2273.3,2273.2,4.3979529]
[1725743382170,7.14828973,2273.3,2272.8,4.39985]
[1725743382370,4.73908973,2273.3,2273.1,4.39926]
[1725743382580,4.03880789,2273.3,2273.2,2.29971816]
[1725743382737,4.03880789,2273.3,2273.1,4.39926]
[1725743383143,4.03880789,2273.3,2272.9,4.39952]
[1725743383360,4.03880789,2273.0,2272.9,4.39952]
[1725743383984,4.03880789,2273.0,2272.9,8.79918]
[1725743384740,4.03880789,2273.0,2272.9,11.79918]
[1725743387353,4.03880789,2273.0,2272.9,13.22468814]
[1725743388499,4.03880789,2273.0,2272.9,11.79918]
[1725743389978,0.64192502,2273.2,2273.0,4.3993]
[1725743390187,0.64192502,2273.2,2273.1,4.39927]
[1725743391986,2.19752461,2273.2,2273.1,4.39927]
[1725743392378,2.37025281,2273.2,2273.0,8.79865]
[1725743393053,2.37025281,2273.2,2273.1,4.39927]
[1725743393252,8.14430418,2273.7,2273.1,1.179857]
[1725743393451,1.55559959,2273.2,2273.1,4.39927]
[1725743394293,1.55559959,2273.2,2273.1,8.79854]
[1725743402879,3.94039959,2273.2,2273.1,4.39927]
[1725743403106,2.3848,2273.1,2272.7,4.5165014]
[1725743403292,1.55559959,2272.8,2272.6,4.40006]
[1725743403456,1.55559959,2272.8,2272.1,4.40111]
[1725743403457,4.40026,2272.6,2272.1,4.40111]
[1725743403779,3.94039959,2272.7,2272.1,8.80232]
[1725743403780,1.55559959,2272.2,2272.1,8.80232]
[1725743404795,1.12993068,2272.5,2272.3,4.40074]
[1725743404988,2.3848,2272.7,2272.1,2.3742]
[1725743405195,0.57993068,2272.6,2272.4,4.40048]
[1725743405407,1.14977237,2272.6,2272.5,4.40044]
[1725743405761,2.70537196,2272.6,2272.5,4.40044]
[1725743405995,4.88564896,2272.6,2272.3,4.4007]
[1725743406210,4.88564896,2272.6,2271.8,0.92198101]
[1725743406211,7.27044896,2272.6,2271.8,0.92198101]
[1725743406378,7.27044896,2272.6,2272.3,4.4007]
[1725743406379,0.55,2272.5,2272.3,4.4007]
[1725743406713,4.14005512,2272.6,2272.4,4.40045]
[1725743408177,4.14005512,2272.6,2272.3,8.8014]
[1725743408376,2.3848,2272.3,2272.1,4.40105]
[1725743408584,3.73587659,2272.2,2272.1,8.80216]
[1725743408785,3.73587659,2272.2,2272.1,11.80216]
[1725743409267,6.12067659,2272.2,2271.6,0.92198101]
[1725743409460,3.73587659,2271.9,2271.2,0.005]
[1725743409843,1.06301402,2272.1,2271.7,4.40182]
[1725743409962,0.56984169,2271.8,2271.7,4.40182]
[1725743410592,2.3848,2271.7,2271.3,4.40263]
[1725743410773,3.73587659,2271.4,2271.3,4.40263]
[1725743411802,3.73587659,2271.8,2271.7,4.40198]
[1725743411968,4.30571828,2271.8,2271.7,4.40198]
[1725743412171,4.30571828,2271.8,2271.5,4.40236]
[1725743412674,0.56984169,2271.7,2271.6,4.40203]
[1725743413106,0.56984169,2271.7,2271.6,8.80421]
[1725743413319,3.73587659,2271.8,2271.7,8.80396]
[1725743413623,0.51301402,2272.1,2271.7,5.282376]
[1725743413624,0.56984169,2272.1,2271.7,5.282376]
[1725743413832,3.73587659,2272.2,2272.1,4.40121]
[1725743413986,4.30571828,2272.2,2272.1,4.40121]
[1725743414930,4.30571828,2272.2,2272.1,8.80242]
[1725743420200,4.30571828,2272.2,2272.0,4.4014]
[1725743420524,4.30571828,2272.2,2271.6,4.40204]
[1725743420525,3.48071402,2272.1,2271.6,4.40204]
[1725743420733,3.73587659,2271.9,2271.6,4.40204]
[1725743421033,0.56984169,2271.8,2271.6,4.40204]
[1725743421252,2.4177,2271.7,2271.2,4.40779]
[1725743421410,3.73587659,2271.5,2271.2,8.81063]
[1725743421607,3.73587659,2271.5,2271.3,4.40267]
[1725743423164,3.73587659,2271.5,2271.2,0.005]
[1725743423313,3.73587659,2271.3,2271.2,8.81087]
[1725743423725,3.73587659,2271.3,2271.2,4.40792]
[1725743424011,11.67617828,2271.3,2271.2,0.005]
[1725743424240,11.67617828,2271.3,2270.3,2.5876014]
[1725743424241,2.4177,2271.2,2270.3,0.1165014]
[1725743424447,2.4177,2270.3,2269.5,5.32817101]
[1725743424648,3.73587659,2269.6,2269.4,0.01]
[1725743425355,3.73587659,2269.6,2268.9,0.0008044]
[1725743425356,2.4177,2269.1,2268.9,0.0008044]
[1725743425564,2.4177,2269.1,2268.3,0.91411438]
[1725743425565,3.73587659,2269.0,2268.3,0.86491878]
[1725743425852,3.73587659,2268.4,2268.3,5.27349878]
[1725743426063,3.73587659,2268.4,2268.3,0.86491878]
[1725743426266,14.97035659,2268.4,2268.3,0.86491878]
[1725743426440,16.8575885,2268.4,2268.3,0.86491878]
[1725743426766,3.68575885,2268.3,2266.5,4.41198]
[1725743426925,3.73587659,2266.9,2266.7,4.41163]
[1725743427122,3.73587659,2266.9,2266.1,7.80585101]
[1725743427123,3.73587659,2266.9,2266.3,4.4124]
[1725743427472,3.73587659,2267.3,2266.9,4.41114]
[1725743427760,3.73587659,2267.0,2266.9,0.09563572]
[1725743427968,9.26789652,2267.0,2266.9,0.09563572]
[1725743428119,0.71662585,2267.0,2266.9,0.09563572]
[1725743428322,0.71662585,2267.0,2265.4,1.48470148]
[1725743428323,2.0,2266.5,2265.2,0.005]
[1725743428579,2.0,2266.5,2264.4,0.00080441]
[1725743428580,2.0,2265.7,2264.4,0.00080441]
[1725743428783,5.00671461,2265.9,2264.4,0.00080441]
[1725743429066,12.41847461,2266.7,2264.7,4.41558]
[1725743429290,5.00671461,2266.7,2265.8,4.41341]
[1725743429578,5.00671461,2266.7,2265.4,4.41407]
[1725743429776,0.55,2266.6,2265.2,2.4711]
[1725743430067,0.55,2266.6,2264.9,4.38]
[1725743430068,5.00671461,2266.0,2265.3,4.41439]
[1725743430280,3.5449731,2266.6,2265.0,4.41489]
[1725743430430,3.5449731,2266.6,2265.8,4.41343]
[1725743430431,3.0,2266.6,2265.8,4.41343]
[1725743430629,4.664,2266.8,2266.1,4.41283]
[1725743430877,1.664,2267.4,2266.5,4.41208]
[1725743431166,2.13502759,2267.4,2266.7,4.41169]
[1725743431373,2.13502759,2267.4,2266.9,4.41129]
[1725743431374,1.664,2267.4,2266.9,4.41129]
[1725743431576,1.664,2267.4,2267.0,4.4111]
[1725743431867,1.664,2267.4,2266.8,4.41149]
[1725743431868,0.06374494,2267.3,2266.9,4.41115]
[1725743432075,0.14,2267.0,2266.0,4.41297]
[1725743432241,0.14,2267.0,2264.8,5.94894407]
[1725743432242,0.47102759,2266.9,2266.2,4.41251]
[1725743432444,0.05927062,2266.9,2266.7,4.41153]
[1725743432647,0.05927062,2266.9,2266.8,8.823]
[1725743432847,0.05927062,2266.9,2266.4,4.41219]
[1725743432848,0.14,2267.0,2266.9,4.41131]
[1725743433049,0.14,2267.0,2266.9,8.82262]
[1725743433242,0.19546989,2267.0,2266.9,8.82262]
[1725743433461,0.19546989,2267.0,2266.9,4.41131]
[1725743433701,0.19546989,2267.0,2266.9,8.82262]
[1725743433976,5.00671461,2268.0,2267.3,4.41049]
[1725743434126,5.4777422,2268.0,2267.3,4.41049]
[1725743434439,5.4777422,2268.0,2266.9,4.41116]
[1725743434440,4.93366635,2267.8,2266.9,4.41116]
[1725743434645,5.00671461,2267.7,2266.7,4.41156]
[1725743434841,0.47102759,2267.6,2266.9,4.41112]
[1725743435058,0.5239253,2267.6,2267.1,4.41074]
[1725743435257,0.05289771,2267.6,2267.1,4.41074]
[1725743435430,9.41569461,2268.1,2267.1,4.41074]
[1725743435739,9.41569461,2268.1,2266.7,0.08822048]
[1725743435740,0.05333249,2267.5,2267.4,4.41033]
[1725743435932,5.00671461,2268.1,2267.4,4.41033]
[1725743436131,0.05200109,2267.5,2267.4,4.41033]
[1725743436329,5.00671461,2268.1,2267.4,4.41033]
[1725743436530,0.051941,2267.5,2267.3,4.41051]
[1725743436777,2.13502759,2267.9,2267.3,4.41051]
[1725743436973,0.0518576,2267.4,2267.3,4.41051]
[1725743437158,0.47102759,2267.8,2267.3,4.41051]
[1725743437357,0.05296392,2267.4,2267.3,4.41051]
[1725743437661,1.664,2267.9,2267.4,4.41029]
[1725743437868,0.55,2267.8,2267.5,4.41]
[1725743438038,1.664,2267.9,2267.4,4.41033]
[1725743438240,5.00671461,2268.1,2267.5,4.41009]
[1725743438451,6.54350759,2268.4,2267.5,4.41009]
[1725743438637,4.87962759,2268.3,2267.5,4.41009]
[1725743439115,0.05230867,2268.2,2267.5,4.41009]
[1725743439368,0.05230867,2268.2,2268.1,13.22691]
[1725743439529,0.05230867,2268.2,2268.1,16.22691]
[1725743439729,0.46015438,2269.1,2268.6,4.40793]
[1725743439943,5.00671461,2269.3,2268.7,4.4078]
[1725743439944,5.4777422,2269.3,2268.7,4.4078]
[1725743440142,5.4777422,2269.3,2268.6,4.40793]
[1725743440368,5.4777422,2269.3,2267.5,5.00671461]
[1725743440369,4.40742,2268.9,2268.2,4.4087]
[1725743440673,5.00671461,2268.7,2267.8,4.40953]
[1725743440837,4.87916759,2268.6,2267.8,4.40941]
[1725743441572,5.00671461,2268.7,2267.4,2.3543]
[1725743441573,5.00671461,2268.7,2268.0,4.40915]
[1725743441867,5.00671461,2268.7,2268.0,8.81817]
[1725743441868,0.55,2268.6,2268.0,8.81817]
[1725743442186,5.00671461,2269.3,2268.4,4.40819]
[1725743442468,5.00671461,2269.3,2268.6,4.40781]
[1725743442666,0.04604961,2269.2,2268.8,4.40748]
[1725743442886,5.00671461,2269.3,2268.8,4.40748]
[1725743443089,0.04608648,2269.1,2268.8,4.40748]
[1725743443247,6.54128759,2269.5,2268.8,4.40748]
[1725743443248,2.13502759,2269.5,2268.8,4.40748]
[1725743443571,2.13502759,2269.5,2269.1,4.40698]
[1725743443572,1.664,2269.5,2269.1,4.40698]
[1725743443778,1.664,2269.5,2268.2,4.40874]
[1725743443779,0.93111195,2269.8,2268.6,4.40794]
[1725743444079,1.664,2270.0,2269.5,4.40622]
[1725743444280,2.13502759,2270.0,2269.5,8.81234]